[Event "76th Montenegro Championship 2024"]
[Site "Podgorica"]
[Date "2024.02.08"]
[Round "3.9"]
[White "Kalezic, Blazo"]
[Black "Nenezic, Danilo"]
[Result "1/2-1/2"]
[ECO "C10"]
[WhiteElo "2407"]
[BlackElo "2086"]
[Annotator "TA"]
[PlyCount "76"]
[EventDate "2024.02.06"]
[EventType "swiss"]
[EventCountry "MNE"]
[SourceTitle "playchess.com"]
[Source "ChessBase"]
[SourceQuality "1"]
[TimeControl "40/5400+30:1800+30"]

{[%evp 12,76,45,19,31,16,23,20,20,22,25,39,48,55,66,69,96,97,147,110,272,61,62,57,109,77,94,66,74,64,62,68,111,68,76,28,36,45,60,14,16,20,8,0,0,-5,0,0,0,-21,-20,-11,0,0,0,0,0,0,0,0,0,0,0,0,0,0,0]} 1. d4 {[%emt 0:00:04]} d5 {[%emt 0:01:12]} 2. Nc3 {[%emt 0:00:32]} e6 {[%emt 0:00:26]} 3. e4 {[%emt 0:00:09]} dxe4 {[%emt 0:04:02]} 4. Nxe4 {[%emt 0:00:13]} Nd7 {[%emt 0:01:44][%cal Bb8d7,Bd7f6,Bf6d5][%mdl 32]} 5. Nf3 {[%emt 0:00:21]} Ngf6 {[%emt 0:00:23]} 6. Nxf6+ {[%emt 0:00:08]} Nxf6 {[%emt 0:00:38]} 7. Be3 {[%emt 0:00:09]} Nd5 {[%emt 0:02:03]} 8. c3 {[%emt 0:00:22]} Be7 {[%emt 0:02:46]} 9. Bd3 {[%emt 0:00:20]} c5 {[%emt 0:22:32]} 10. Qc2 {[%emt 0:04:32]} Nxe3 {[%emt 0:04:02]} 11. fxe3 {[%emt 0:00:09]} cxd4 {[%emt 0:01:45]} 12. exd4 {[%emt 0:00:17][%cal Oe1g1]} h6 {[%emt 0:02:53]} 13. O-O {[%emt 0:00:27]} O-O {[%emt 0:07:24]} 14. Ne5 {[%emt 0:01:10] Bh7+ would now be deadly.} Bf6 {[%emt 0:01:26]} ({Better is} 14... f5) 15. Rae1 {[%emt 0:00:50] White has more active pieces. The black rooks are passive.} Bd7 $2 {[%emt 0:03:30] [#]} (15... Bxe5 $16 16. Rxe5 Qb6) 16. Nxd7 $2 {[%emt 0:01:55]} (16. Bh7+ $1 $18 Kh8 17. Rxf6) 16... Qxd7 $14 {[%emt 0:00:23] Black is weak on the light squares} 17. Qe2 {[%emt 0:08:01]} Rfd8 {[%emt 0:07:24]} (17... Qd5 $14) 18. Rf3 {[%emt 0:01:15]} Qd5 {[%emt 0:04:52]} 19. a3 {[%emt 0:01:06]} Rd7 {[%emt 0:03:09]} 20. Ref1 {[%emt 0:03:59]} Bg5 {[%emt 0:13:13]} 21. g3 {[%emt 0:01:16]} Rf8 {[%emt 0:01:24]} 22. Bb1 {[%emt 0:05:10]} Bd8 {[%emt 0:06:56]} 23. Qc2 {[%emt 0:01:38]} (23. a4 $16) 23... g6 $11 {[%emt 0:01:57]} 24. Qe2 {[%emt 0:00:19][%cal Ob1g6]} Re8 {[%emt 0:02:14]} 25. Bd3 {[%emt 0:04:24]} (25. b4 $14 {should be considered.}) 25... a6 {[%emt 0:02:03] The position is equal.} 26. Bc4 {[%emt 0:00:33]} Qd6 {[%emt 0:00:55]} 27. Qe4 {[%emt 0:00:48][%cal Of3f7] [#] Rxf7! would kill now.} Kg7 {[%emt 0:00:18]} 28. Qe2 {[%emt 0:03:28]} Bc7 {[%emt 0:01:20]} 29. Bb3 {[%emt 0:02:23]} f5 {[%emt 0:00:36]} 30. Rd1 {[%emt 0:07:19]} Rde7 {[%emt 0:00:42]} 31. Re3 {[%emt 0:01:29]} e5 {[%emt 0:00:13]} 32. Rxe5 $1 {[%emt 0:06:05]} ({Wrong is} 32. dxe5 $2 Qb6 33. Ba4 Rxe5 34. Bxe8 Rxe3 $19 (34... Qxe3+ 35. Qxe3 Rxe3 36. Rd7+ Kf6 37. Rxc7 $16)) 32... Rxe5 {[%emt 0:00:17]} 33. dxe5 {[%emt 0:00:06]} Qc5+ {[%emt 0:01:31]} ({Of course not} 33... Qb6+ $6 34. Kg2 Re7 35. Qc4 Qc6+ 36. Qxc6 bxc6 37. e6 $16) 34. Kg2 {[%emt 0:01:33]} Bxe5 {[%emt 0:00:30]} 35. Rd5 {[%emt 0:09:26]} Qc6 {[%emt 0:00:33][%cal Oe5g3]} 36. Qc4 {[%emt 0:00:16]} Qxc4 {[%emt 0:00:26]} 37. Bxc4 {[%emt 0:00:06]} Re7 {[%emt 0:00:10] Wards off Rd7} 38. a4 {[%emt 0:00:34]} h5 {[%emt 0:00:27] Weighted Error Value: White=0.21 (precise) /Black=0.14 (very precise) .  Loses game:     	---       	Black=1      Missed win:     	White=1     	---        Mistake:       	White=2     	Black=2      Inaccurate:     	White=1     	Black=2      OK:         	White=6     	Black=14     Best:        	---       	Black=1      Strong:       	White=1     	---} 1/2-1/2

[Event "76th Montenegro Championship 2024"]
[Site "Podgorica"]
[Date "2024.02.08"]
[Round "3.10"]
[White "Ivanovic, Bozidar"]
[Black "Djukanovic, Sreten"]
[Result "1/2-1/2"]
[ECO "B86"]
[WhiteElo "2403"]
[BlackElo "2068"]
[Annotator "TA"]
[PlyCount "30"]
[EventDate "2024.02.06"]
[EventType "swiss"]
[EventCountry "MNE"]
[SourceTitle "playchess.com"]
[Source "ChessBase"]
[SourceQuality "1"]
[TimeControl "40/5400+30:1800+30"]

{[%evp 17,30,0,-12,-27,-17,-30,-43,-31,0,-127,-128,-132,-116,-111,-52]} 1. e4 {[%emt 0:00:17]} c5 {[%emt 0:00:18]} 2. Nf3 {[%emt 0:00:20]} d6 {[%emt 0:00:04]} 3. d4 {[%emt 0:00:18]} cxd4 {[%emt 0:00:16]} 4. Nxd4 {[%emt 0:00:17]} Nf6 {[%emt 0:00:06]} 5. Nc3 {[%emt 0:00:21]} a6 {[%emt 0:00:05]} 6. Bc4 {[%emt 0:00:23]} e6 {[%emt 0:00:42]} 7. Bb3 {[%emt 0:00:43]} Nbd7 {[%emt 0:02:43]} 8. Bg5 {[%emt 0:04:31]} Nc5 {[%emt 0:01:31]} 9. Qf3 {[%emt 0:03:22]} Be7 {[%emt 0:01:27]} 10. O-O-O {[%emt 0:03:05][%cal Oe4e5]} Qc7 {[%emt 0:02:09]} 11. Kb1 {[%emt 0:13:47]} O-O {[%emt 0:02:58]} 12. Rhe1 {[%emt 0:12:34]} b5 {[%emt 0:06:45][%cal Bb7b5,Bb5b4][%mdl 32]} 13. Qg3 {[%emt 0:10:49] [#]} (13. Bxf6 $1 $11 Bxf6 14. e5 dxe5 15. Ndxb5) 13... b4 $1 $17 {[%emt 0:16:28]} 14. Bxf6 {[%emt 0:00:53]} ({But not} 14. Bh6 $2 Nh5 (14... bxc3 15. Qxg7#) 15. Nd5 exd5 $19) 14... Bxf6 {[%emt 0:00:41]} 15. Na4 {[%emt 0:00:18]} Bb7 {[%emt 1:01:47] Weighted Error Value: White=0.21 (precise) /Black=0.06 (flawless) .  Mistake:       	White=1     	Black=1      Inaccurate:     	---       	Black=1      OK:         	White=3     	Black=1      Best:        	White=1     	---        Strong:       	---       	Black=1} (15... Rd8 $17 16. Nf3 Bb7) 1/2-1/2

[Event "76th Montenegro Championship 2024"]
[Site "Podgorica"]
[Date "2024.02.08"]
[Round "3.11"]
[White "Skvortsova, Alena"]
[Black "Tomic, Aleksandar"]
[Result "1/2-1/2"]
[ECO "B03"]
[WhiteElo "2111"]
[BlackElo "2398"]
[Annotator "TA"]
[PlyCount "165"]
[EventDate "2024.02.06"]
[EventType "swiss"]
[EventCountry "MNE"]
[SourceTitle "playchess.com"]
[Source "ChessBase"]
[SourceQuality "1"]
[TimeControl "40/5400+30:1800+30"]

{[%evp 68,165,-59,-59,-59,-59,-60,-54,-54,-62,0,-61,-66,-81,-69,-154,-20,-15,-24,-31,-28,-33,0,-22,-18,-33,-19,-44,-39,-34,-41,-40,-36,-43,0,0,0,0,6,2,2,8,8,17,17,0,0,0,0,0,0,0,0,0,0,0,0,0,0,0,0,0,0,0,0,0,0,0,0,0,0,0,0,0,0,0,0,0,0,0,0,0,0,0,0,0,0,0,0,0,0,0,0,0,0,0,0,0,0,0]} 1. e4 {[%emt 0:00:03]} Nf6 {[%emt 0:12:50]} 2. e5 {[%emt 0:00:34]} Nd5 {[%emt 0:00:02]} 3. d4 {[%emt 0:01:09]} d6 {[%emt 0:00:06]} 4. c4 {[%emt 0:00:28]} Nb6 {[%emt 0:00:06]} 5. f4 {[%emt 0:00:22]} Bf5 {[%emt 0:00:46]} 6. Nc3 {[%emt 0:00:45]} e6 {[%emt 0:00:49]} 7. Nf3 {[%emt 0:02:49]} dxe5 {[%emt 0:01:18]} 8. fxe5 {[%emt 0:00:25]} Nc6 {[%emt 0:00:22]} 9. Be3 {[%emt 0:00:10]} Bb4 {[%emt 0:00:45]} 10. Rc1 {[%emt 0:06:46]} Bg4 {[%emt 0:02:32]} 11. Be2 {[%emt 0:02:05]} Bxf3 {[%emt 0:02:48]} 12. gxf3 {[%emt 0:00:13]} Qh4+ {[%emt 0:04:33]} 13. Bf2 {[%emt 0:00:17]} Qf4 {[%emt 0:00:11]} 14. c5 {[%emt 0:24:20]} Nd5 {[%emt 0:17:06]} 15. a3 {[%emt 0:15:00]} Bxc3+ {[%emt 0:08:37]} 16. bxc3 {[%emt 0:00:21]} O-O {[%emt 0:00:32]} 17. Qd2 {[%emt 0:02:29]} Na5 {[%emt 0:05:24]} 18. Qxf4 {[%emt 0:05:08]} Nxf4 {[%emt 0:02:31]} 19. Be3 {[%emt 0:07:13]} Nxe2 {[%emt 0:02:36]} 20. Kxe2 {[%emt 0:00:03]} b6 {[%emt 0:06:21]} 21. c4 {[%emt 0:02:49]} Rfb8 {[%emt 0:02:42]} 22. cxb6 {[%emt 0:04:01]} axb6 {[%emt 0:01:30]} 23. Rc3 {[%emt 0:01:18]} Nc6 {[%emt 0:09:16]} 24. f4 {[%emt 0:01:04]} Ra5 {[%emt 0:00:46]} 25. Rd1 {[%emt 0:00:20]} Ne7 {[%emt 0:00:25]} 26. Kf3 {[%emt 0:06:46]} h6 {[%emt 0:01:36]} 27. Ke4 {[%emt 0:00:25]} Ra4 {[%emt 0:01:14]} 28. Rb1 {[%emt 0:01:16]} Rba8 {[%emt 0:00:42]} 29. Bc1 {[%emt 0:00:08]} Kf8 {[%emt 0:01:28]} 30. Rb4 {[%emt 0:01:19]} R4a5 {[%emt 0:01:56]} 31. Rd3 {[%emt 0:00:56]} Nc6 {[%emt 0:02:13]} 32. Rbb3 {[%emt 0:02:59]} Ra4 {[%emt 0:00:38]} 33. Rdc3 {[%emt 0:00:35]} g6 {[%emt 0:01:20]} 34. Be3 {[%emt 0:00:49]} h5 {[%emt 0:02:37]} 35. Bf2 {[%emt 0:00:22]} Ke8 {[%emt 0:01:03]} 36. Bh4 {[%emt 0:01:34]} Kd7 {[%emt 0:00:26]} 37. Kd3 {[%emt 0:00:56]} R8a5 {[%emt 0:00:58]} 38. Bg5 {[%emt 0:01:57]} Ra8 {[%emt 0:01:01]} (38... Na7 $15 39. Bh6 Ke8) 39. Bf6 {[%emt 0:01:31]} ({White should try} 39. Bh4 $1 $11) 39... R8a6 {[%emt 0:03:08]} 40. Bg5 {[%emt 0:00:00]} Na7 {[%emt 0:00:00]} 41. Ke3 {[%emt 0:14:32]} (41. Bh6 $15) 41... c6 {[%emt 0:05:35]} ({Black should play} 41... R6a5 $17 {aiming for ...b5.} 42. Bh4 b5) 42. Bh6 $1 $11 {[%emt 0:08:52]} Ke8 {[%emt 0:06:50]} 43. Bg5 {[%emt 0:04:07]} R4a5 {[%emt 0:06:55]} 44. Kd2 {[%emt 0:03:27]} Ra4 {[%emt 0:05:28]} 45. Kc2 {[%emt 0:01:27]} Kd7 {[%emt 0:01:05]} 46. Kb2 {[%emt 0:00:58]} b5 {[%emt 0:00:53]} 47. Bh6 {[%emt 0:02:54]} bxc4 {[%emt 0:05:30]} 48. Rb7+ {[%emt 0:00:09]} Kc8 {[%emt 0:00:08]} 49. Rxf7 {[%emt 0:01:44]} Rb6+ {[%emt 0:00:32]} 50. Kc1 $1 {[%emt 0:02:09]} h4 {[%emt 0:06:11]} 51. Bf8 {[%emt 0:00:45]} Nb5 {[%emt 0:00:47]} 52. Rh3 {[%emt 0:00:44]} Rb7 {[%emt 0:00:45]} 53. Rxb7 {[%emt 0:00:22]} Kxb7 {[%emt 0:00:06]} 54. Bc5 {[%emt 0:00:45]} c3 {[%emt 0:00:53]} 55. Rxh4 {[%emt 0:00:23]} Nxd4 {[%emt 0:00:33]} (55... Nxa3 56. Rh7+ Kc8 57. Bxa3 (57. Re7 Nb5 $11) 57... Rxa3 58. Kc2 $18) 56. Bxd4 {[%emt 0:00:52]} Rxd4 {[%emt 0:00:09]} 57. Kc2 {[%emt 0:00:19]} Kb6 {[%emt 0:00:51]} 58. Kxc3 {[%emt 0:00:36]} Kc5 {[%emt 0:00:17]} 59. Rg4 {[%emt 0:00:23]} Kd5 {[%emt 0:00:26]} 60. h3 {[%emt 0:01:28]} c5 {[%emt 0:00:41]} 61. h4 {[%emt 0:00:59]} Re4 {[%emt 0:00:28]} 62. Kd3 {[%emt 0:00:55]} Ra4 {[%emt 0:00:17]} 63. Kc2 {[%emt 0:00:08]} Rxa3 {[%emt 0:00:40]} 64. Rxg6 {[%emt 0:00:12]} Rh3 {[%emt 0:00:10]} 65. Rh6 {[%emt 0:01:05]} Rf3 {[%emt 0:00:58]} 66. Rf6 {[%emt 0:00:09]} Rh3 {[%emt 0:00:04]} 67. Rh6 {[%emt 0:01:01]} Rh1 {[%emt 0:00:50]} 68. h5 {[%emt 0:00:25]} Rh4 {[%emt 0:00:19]} 69. Rf6 {[%emt 0:00:27]} Rxh5 {[%emt 0:00:17]} 70. Rf8 {[%emt 0:00:12]} Rh2+ {[%emt 0:00:40]} 71. Kc3 {[%emt 0:00:08]} Rh3+ {[%emt 0:00:06]} 72. Kc2 {[%emt 0:00:13]} Rf3 {[%emt 0:00:19]} 73. Rf7 {[%emt 0:01:40]} Kd4 {[%emt 0:01:11]} 74. Rf6 {[%emt 0:00:15]} Rf2+ {[%emt 0:00:10]} 75. Kd1 {[%emt 0:00:12]} Kd5 {[%emt 0:00:52]} 76. Ke1 {[%emt 0:00:17]} Ra2 {[%emt 0:00:46]} 77. Kd1 {[%emt 0:00:39]} c4 {[%emt 0:00:11]} 78. f5 {[%emt 0:00:24]} exf5 {[%emt 0:00:49]} 79. e6 {[%emt 0:00:35]} Ra8 {[%emt 0:00:30]} 80. e7 {[%emt 0:00:24]} Re8 {[%emt 0:00:13]} 81. Rxf5+ {[%emt 0:00:12]} Ke6 {[%emt 0:00:06]} 82. Rc5 {[%emt 0:00:04]} Rxe7 {[%emt 0:00:05]} 83. Rxc4 {[%emt 0:00:02]} 1/2-1/2

[Event "76th Montenegro Championship 2024"]
[Site "Podgorica"]
[Date "2024.02.08"]
[Round "3.12"]
[White "Kandic, Milojko"]
[Black "Vujosevic, Vladimir"]
[Result "1/2-1/2"]
[ECO "E01"]
[WhiteElo "2046"]
[BlackElo "2335"]
[Annotator "TA"]
[PlyCount "79"]
[EventDate "2024.02.06"]
[EventType "swiss"]
[EventCountry "MNE"]
[SourceTitle "playchess.com"]
[Source "ChessBase"]
[SourceQuality "1"]
[TimeControl "40/5400+30:1800+30"]

{[%evp 9,79,-4,7,8,0,-12,-4,-68,-16,-50,-48,-46,-36,-93,-88,-93,-93,-89,-29,-10,-29,-25,-12,-22,-16,-16,0,0,0,0,0,-1,0,2,17,14,14,15,23,20,26,25,25,22,39,37,34,35,24,0,0,0,2,0,5,0,14,14,12,12,13,0,10,8,9,8,10,10,22,0,0,0]} 1. d4 {[%emt 1:31:00]} Nf6 {[%emt 0:07:08]} 2. Nf3 {[%emt 0:00:00]} d5 {[%emt 0:00:46]} 3. c4 {[%emt 0:00:00]} e6 {[%emt 0:00:38]} 4. Nc3 {[%emt 0:00:00]} Be7 {[%emt 0:00:52]} 5. g3 {[%emt 0:00:00]} dxc4 {[%emt 0:07:23]} 6. Qa4+ {[%emt 0:00:00]} Nbd7 {[%emt 0:01:27]} 7. Qxc4 {[%emt 0:00:00]} a6 {[%emt 0:03:19]} 8. a4 {[%emt 0:00:00]} (8. Bf4 $11) 8... c5 {[%emt 0:05:09]} (8... b5 $1 $15 9. Qc6 (9. axb5 $2 {perishes.} axb5 10. Rxa8 bxc4 $19) 9... Ra7) 9. a5 {[%emt 0:00:00]} b5 {[%emt 0:06:03]} 10. axb6 {[%emt 0:00:00]} Nxb6 {[%emt 0:00:22]} 11. Qb3 {[%emt 0:00:00]} (11. Qd3 $15) 11... cxd4 $17 {[%emt 0:03:00]} 12. Nxd4 {[%emt 0:00:00]} Qxd4 {[%emt 0:07:17]} 13. Be3 {[%emt 0:00:00] [#]} Qb4 {[%emt 0:01:37]} (13... Qd7 $1 $17 {[%cal Rd7c6] Strongly threatening ...Qc6.} 14. Qxb6 Bb7) 14. Qxb4 $11 {[%emt 0:00:00]} Bxb4 {[%emt 0:00:12]} 15. Bxb6 {[%emt 0:00:00]} Bb7 {[%emt 0:00:24] Inhibits Bg2.} ({Of course not} 15... Bxc3+ 16. bxc3 Bb7 17. f3 $11) 16. f3 {[%emt 0:00:00]} Nd7 {[%emt 0:04:41]} 17. Ba5 {[%emt 0:00:00]} Bxa5 {[%emt 0:16:51]} 18. Rxa5 {[%emt 0:00:00]} Ke7 {[%emt 0:01:57]} 19. e4 {[%emt 0:00:00]} Rhc8 {[%emt 0:02:29]} 20. Kd2 {[%emt 0:00:00]} Nc5 {[%emt 0:03:14] [#] And now ...Nb3+ would win.} 21. Ke3 {[%emt 0:00:00]} Rc7 {[%emt 0:07:00]} 22. Be2 {[%emt 0:00:00]} Rb8 {[%emt 0:00:52]} 23. Rc1 {[%emt 0:00:00]} Rbc8 {[%emt 0:02:42]} 24. Ra3 {[%emt 0:00:00] Inhibits Nb3.} f6 {[%emt 0:00:28]} 25. Rd1 {[%emt 0:00:00]} Rc6 {[%emt 0:00:27]} 26. Rd4 {[%emt 0:00:00]} Rb6 {[%emt 0:01:28]} 27. b4 {[%emt 0:00:00]} Nd7 {[%emt 0:00:16]} 28. Na4 {[%emt 0:00:00]} Rd6 {[%emt 0:02:20]} 29. Rad3 {[%emt 0:06:44]} Rxd4 {[%emt 0:00:24] The position is equal.} 30. Rxd4 {[%emt 0:00:03]} Rc1 {[%emt 0:01:56]} 31. Kd2 {[%emt 0:01:12]} Rc7 {[%emt 0:00:31]} 32. Rd3 {[%emt 0:00:40]} Bc8 {[%emt 0:01:07]} 33. Rc3 {[%emt 0:00:15]} Rxc3 {[%emt 0:00:12]} 34. Kxc3 {[%emt 0:00:07][%mdl 4096] Endgame. KBN-KBN} Kd6 {[%emt 0:00:24]} 35. Kd4 {[%emt 0:01:01]} Kc6 {[%emt 0:01:00]} 36. f4 {[%emt 0:01:40]} e5+ {[%emt 0:01:03]} 37. Kc3 {[%emt 0:01:07]} Nb6 {[%emt 0:03:38]} 38. Nb2 {[%emt 0:01:59]} Kd6 {[%emt 0:00:39]} 39. Nc4+ {[%emt 0:01:11]} Nxc4 {[%emt 0:00:12]} 40. Bxc4 {[%emt 0:00:00] Weighted Error Value: White=0.11 (very precise) /Black=0.09 (flawless) .  Mistake:       	White=2     	Black=2      Inaccurate:     	White=1     	---        OK:         	White=11    	Black=12     Best:        	White=3     	Black=2} 1/2-1/2

[Event "76th Montenegro Championship 2024"]
[Site "Podgorica"]
[Date "2024.02.08"]
[Round "3.13"]
[White "Koljevic, Nikolina"]
[Black "Draganic, Veljko"]
[Result "1/2-1/2"]
[ECO "B12"]
[WhiteElo "1974"]
[BlackElo "2323"]
[Annotator "RC"]
[PlyCount "180"]
[EventDate "2024.02.06"]
[EventType "swiss"]
[EventCountry "MNE"]
[SourceTitle "playchess.com"]
[Source "ChessBase"]
[SourceQuality "1"]
[TimeControl "40/5400+30:1800+30"]

1. e4 {[%emt 0:02:18]} c6 {[%emt 0:02:13]} 2. d4 {[%emt 0:00:10]} d5 {[%emt 0:00:05]} 3. e5 {[%emt 0:00:15]} c5 {[%emt 0:00:02]} 4. dxc5 {[%emt 0:00:16]} e6 {[%emt 0:00:02]} 5. Be3 {[%emt 0:00:43]} Nd7 {[%emt 0:00:06]} 6. Bb5 {[%emt 0:01:14]} Qc7 {[%emt 0:00:15]} 7. Nf3 {[%emt 0:02:22]} Bxc5 {[%emt 0:00:13]} 8. Bxc5 {[%emt 0:03:56]} Qxc5 {[%emt 0:00:04]} 9. Qe2 {[%emt 0:00:55]} Ne7 {[%emt 0:01:30]} 10. O-O {[%emt 0:02:52]} Nc6 {[%emt 0:05:15]} 11. Nc3 {[%emt 0:11:21]} O-O {[%emt 0:16:26]} 12. a3 {[%emt 0:14:23]} Nd4 {[%emt 0:14:45]} 13. Nxd4 {[%emt 0:01:27]} Qxd4 {[%emt 0:00:04]} 14. Rfe1 {[%emt 0:02:58]} Qb6 {[%emt 0:02:18]} 15. Rab1 {[%emt 0:09:24]} a6 {[%emt 0:01:44]} 16. Bxd7 {[%emt 0:01:10]} Bxd7 {[%emt 0:00:11]} 17. Na2 {[%emt 0:06:59]} Rac8 {[%emt 0:05:15]} 18. Nb4 {[%emt 0:01:32]} Rc7 {[%emt 0:03:24]} 19. c3 {[%emt 0:01:25]} Ba4 {[%emt 0:03:49]} 20. Qe3 {[%emt 0:10:14]} Qxe3 {[%emt 0:01:43]} 21. Rxe3 {[%emt 0:00:05]} a5 {[%emt 0:00:50]} 22. Nd3 {[%emt 0:02:15]} Rfc8 {[%emt 0:01:10]} 23. Rbe1 {[%emt 0:03:29]} h6 {[%emt 0:01:41]} 24. Nf4 {[%emt 0:02:25]} Bb5 {[%emt 0:01:48]} 25. Ne2 {[%emt 0:01:19]} Bxe2 {[%emt 0:00:06]} 26. R3xe2 {[%emt 0:00:03]} b5 {[%emt 0:00:11]} 27. Re3 {[%emt 0:02:47]} Rc4 {[%emt 0:03:28]} 28. Kf1 {[%emt 0:02:11]} Kf8 {[%emt 0:02:40]} 29. Rd1 {[%emt 0:00:16]} b4 {[%emt 0:02:37]} 30. cxb4 {[%emt 0:02:38]} axb4 {[%emt 0:00:05]} 31. Ke2 {[%emt 0:05:26]} bxa3 {[%emt 0:01:52]} 32. bxa3 {[%emt 0:00:07]} g5 {[%emt 0:00:17]} 33. Rd2 {[%emt 0:01:55]} Kg7 {[%emt 0:00:10]} 34. f3 {[%emt 0:01:59]} h5 {[%emt 0:00:37]} 35. Rb3 {[%emt 0:02:08]} Kg6 {[%emt 0:00:46]} 36. Kd3 {[%emt 0:01:02]} R8c7 {[%emt 0:01:14]} 37. Ra2 {[%emt 0:00:41]} Ra7 {[%emt 0:01:39]} 38. Rc3 {[%emt 0:01:29]} Rca4 {[%emt 0:00:16]} 39. Kc2 {[%emt 0:00:34]} Kf5 {[%emt 0:00:14]} 40. Re3 {[%emt 0:00:00]} Kf4 {[%emt 0:00:00]} 41. Kd2 {[%emt 0:01:10]} h4 {[%emt 0:01:04]} 42. Ke2 {[%emt 0:01:32]} Rc4 {[%emt 0:01:01]} 43. Kf2 {[%emt 0:02:56]} Rac7 {[%emt 0:00:44]} 44. Ree2 {[%emt 0:06:12]} Kf5 {[%emt 0:00:56]} 45. Rad2 {[%emt 0:05:09]} Rc3 {[%emt 0:00:40]} 46. g4+ {[%emt 0:00:49]} hxg3+ {[%emt 0:00:23]} 47. hxg3 {[%emt 0:00:06]} Rxa3 {[%emt 0:00:10]} 48. g4+ {[%emt 0:00:04]} Kg6 {[%emt 0:00:07]} 49. Ra2 {[%emt 0:02:44]} Rcc3 {[%emt 0:00:22]} 50. Rxa3 {[%emt 0:00:06]} Rxa3 {[%emt 0:00:03]} 51. Rb2 {[%emt 0:01:15]} Ra6 {[%emt 0:00:42]} 52. Rb8 {[%emt 0:01:54]} Kg7 {[%emt 0:01:05]} 53. Rb7 {[%emt 0:00:40]} Ra2+ {[%emt 0:00:46]} 54. Ke3 {[%emt 0:00:13]} Ra3+ {[%emt 0:00:13]} 55. Ke2 {[%emt 0:00:06]} Kg6 {[%emt 0:00:25]} 56. Re7 {[%emt 0:00:23]} Ra6 {[%emt 0:00:52]} 57. Ke3 {[%emt 0:01:37]} Ra4 {[%emt 0:00:39]} 58. Re8 {[%emt 0:02:41]} Kg7 {[%emt 0:00:18]} 59. Re7 {[%emt 0:01:08]} Kf8 {[%emt 0:00:06]} 60. Rb7 {[%emt 0:00:03]} Ra3+ {[%emt 0:00:36]} 61. Ke2 {[%emt 0:00:20]} Kg7 {[%emt 0:00:16]} 62. Re7 {[%emt 0:00:07]} d4 {[%emt 0:00:39]} 63. Rd7 {[%emt 0:00:55]} Re3+ {[%emt 0:00:07]} 64. Kf2 {[%emt 0:00:21]} Rxe5 {[%emt 0:00:04]} 65. Rxd4 {[%emt 0:00:03]} Kf6 {[%emt 0:00:06]} 66. Ra4 {[%emt 0:01:52]} Rd5 {[%emt 0:00:25]} 67. Re4 {[%emt 0:00:13]} Ra5 {[%emt 0:00:07]} 68. Kg3 {[%emt 0:02:50]} Ra2 {[%emt 0:00:06]} 69. Re1 {[%emt 0:00:20]} Rd2 {[%emt 0:00:07]} 70. Re4 {[%emt 0:00:32]} Ke7 {[%emt 0:00:10]} 71. Ra4 {[%emt 0:00:20]} Re2 {[%emt 0:00:36]} 72. Ra5 {[%emt 0:00:45]} Kf6 {[%emt 0:00:11]} 73. Ra8 {[%emt 0:01:31]} Kg7 {[%emt 0:00:42]} 74. Ra7 {[%emt 0:00:24]} Kg6 {[%emt 0:00:30]} 75. Ra8 {[%emt 0:00:17]} f5 {[%emt 0:00:37]} 76. gxf5+ {[%emt 0:00:35]} exf5 {[%emt 0:00:17]} 77. Rg8+ {[%emt 0:00:07]} Kh6 {[%emt 0:00:08]} 78. Rf8 {[%emt 0:03:14]} f4+ {[%emt 0:04:57]} 79. Kg4 {[%emt 0:00:03]} Kg6 {[%emt 0:01:42]} 80. Rg8+ {[%emt 0:00:08]} Kf6 {[%emt 0:00:10]} 81. Rf8+ {[%emt 0:00:32]} Kg7 {[%emt 0:01:52]} 82. Ra8 {[%emt 0:01:01]} Rg2+ {[%emt 0:00:21]} 83. Kf5 {[%emt 0:00:19]} Rg3 {[%emt 0:00:28]} 84. Ra6 {[%emt 0:00:12]} Rxf3 {[%emt 0:00:40]} 85. Kxg5 {[%emt 0:00:06]} Rf1 {[%emt 0:00:16]} 86. Rg6+ {[%emt 0:00:34]} Kh7 {[%emt 0:00:07]} 87. Rh6+ {[%emt 0:00:05]} Kg7 {[%emt 0:00:10]} 88. Rg6+ {[%emt 0:00:03]} Kf7 {[%emt 0:00:05]} 89. Rf6+ {[%emt 0:00:05]} Ke7 {[%emt 0:00:04]} 90. Rxf4 {[%emt 0:00:30]} Rxf4 {[%emt 0:00:30]} 1/2-1/2